Workbook

Sheet Rozpočet na 18 období
B1: rozpočet společnosti
G2: POČÁTEČNÍ DATUM | H2: 2011-01-01 | I2: DÉLKA OBDOBÍ (VE DNECH) | K2: 14 | L2: DATUM UKONČENÍ | M2: =TEXT(T5,"dd.mm.rrrr") -> 26.08.2012
C5: =UPPER(TEXT(H2,"dd-mmmm")) -> 01-LEDEN | D5: =UPPER(TEXT(C5+IntervalVeDnech,"dd-mmmm")) -> 15-LEDEN | E5: 29-LEDEN | F5: 12-ÚNOR | G5: 26-ÚNOR | H5: 11-BŘEZEN | I5: 25-BŘEZEN | J5: 08-DUBEN | K5: 22-DUBEN | L5: 06-KVĚTEN | M5: 20-KVĚTEN | N5: 03-ČERVEN | O5: 17-ČERVEN | P5: 01-ČERVENEC | Q5: 15-ČERVENEC | R5: 29-ČERVENEC | S5: 12-SRPEN | T5: 26-SRPEN | U5: CELKEM | V5: TREND
B6: ČISTÝ PŘÍJEM | C6: =TabulkaPříjmů[[#Totals],[Týden 1]]-TabulkaVýdajů[[#Totals],[Týden 1]] -> 1,750.00 Kč | D6: =TabulkaPříjmů[[#Totals],[Týden 2]]-TabulkaVýdajů[[#Totals],[Týden 2]] -> 2,236.00 Kč | E6: =TabulkaPříjmů[[#Totals],[Týden 3]]-TabulkaVýdajů[[#Totals],[Týden 3]] -> 1,442.00 Kč | F6: =TabulkaPříjmů[[#Totals],[Týden 4]]-TabulkaVýdajů[[#Totals],[Týden 4]] -> 2,253.00 Kč | G6: =TabulkaPříjmů[[#Totals],[Týden 5]]-TabulkaVýdajů[[#Totals],[Týden 5]] -> 1,533.00 Kč | H6: =TabulkaPříjmů[[#Totals],[Týden 6]]-TabulkaVýdajů[[#Totals],[Týden 6]] -> 1,086.00 Kč | I6: =TabulkaPříjmů[[#Totals],[Týden 7]]-TabulkaVýdajů[[#Totals],[Týden 7]] -> 1,594.00 Kč | J6: =TabulkaPříjmů[[#Totals],[Týden 8]]-TabulkaVýdajů[[#Totals],[Týden 8]] -> 0 | K6: =TabulkaPříjmů[[#Totals],[Týden 9]]-TabulkaVýdajů[[#Totals],[Týden 9]] -> 0 | L6: =TabulkaPříjmů[[#Totals],[Týden 10]]-TabulkaVýdajů[[#Totals],[Týden 10]] -> 0 | M6: =TabulkaPříjmů[[#Totals],[Týden 11]]-TabulkaVýdajů[[#Totals],[Týden 11]] -> 0 | N6: =TabulkaPříjmů[[#Totals],[Týden 12]]-TabulkaVýdajů[[#Totals],[Týden 12]] -> 0 | O6: =TabulkaPříjmů[[#Totals],[Týden 13]]-TabulkaVýdajů[[#Totals],[Týden 13]] -> 0 | P6: =TabulkaPříjmů[[#Totals],[Týden 14]]-TabulkaVýdajů[[#Totals],[Týden 14]] -> 0 | Q6: =TabulkaPříjmů[[#Totals],[Týden 15]]-TabulkaVýdajů[[#Totals],[Týden 15]] -> 0 | R6: =TabulkaPříjmů[[#Totals],[Týden 16]]-TabulkaVýdajů[[#Totals],[Týden 16]] -> 0 | S6: =TabulkaPříjmů[[#Totals],[Týden 17]]-TabulkaVýdajů[[#Totals],[Týden 17]] -> 0 | T6: =TabulkaPříjmů[[#Totals],[Týden 18]]-TabulkaVýdajů[[#Totals],[Týden 18]] -> 0 | U6: =TabulkaPříjmů[[#Totals],[Celkem]]-TabulkaVýdajů[[#Totals],[Celkem]] -> 11,894.00 Kč
A8: Příjmy
B9: POLOŽKA PŘÍJMŮ 1 | C9: 3,000.00 Kč | D9: 3,500.00 Kč | E9: 2,978.00 Kč | F9: 3,384.00 Kč | G9: 2,858.00 Kč | H9: 2,809.00 Kč | I9: 3,220.00 Kč | U9: =SUM(TabulkaPříjmů[[#This Row],[Týden 1]:[Týden 18]]) -> 21,749.00 Kč
B10: POLOŽKA PŘÍJMŮ 2 | C10: 1,150.00 | D10: 1,200.00 | E10: 1,144.00 | F10: 1,400.00 | G10: 1,358.00 | H10: 1,154.00 | I10: 1,245.00 | U10: =SUM(TabulkaPříjmů[[#This Row],[Týden 1]:[Týden 18]]) -> 8,651.00
B11: POLOŽKA PŘÍJMŮ 3 | C11: 300.00 | D11: 350.00 | E11: 392.00 | F11: 326.00 | G11: 381.00 | H11: 364.00 | I11: 315.00 | U11: =SUM(TabulkaPříjmů[[#This Row],[Týden 1]:[Týden 18]]) -> 2,428.00
B12: PŘÍJMY CELKEM | C12: =SUBTOTAL(109,TabulkaPříjmů[Týden 1]) -> 4,450.00 Kč | D12: =SUBTOTAL(109,TabulkaPříjmů[Týden 2]) -> 5,050.00 Kč | E12: =SUBTOTAL(109,TabulkaPříjmů[Týden 3]) -> 4,514.00 Kč | F12: =SUBTOTAL(109,TabulkaPříjmů[Týden 4]) -> 5,110.00 Kč | G12: =SUBTOTAL(109,TabulkaPříjmů[Týden 5]) -> 4,597.00 Kč | H12: =SUBTOTAL(109,TabulkaPříjmů[Týden 6]) -> 4,327.00 Kč | I12: =SUBTOTAL(109,TabulkaPříjmů[Týden 7]) -> 4,780.00 Kč | J12: =SUBTOTAL(109,TabulkaPříjmů[Týden 8]) -> 0 | K12: =SUBTOTAL(109,TabulkaPříjmů[Týden 9]) -> 0 | L12: =SUBTOTAL(109,TabulkaPříjmů[Týden 10]) -> 0 | M12: =SUBTOTAL(109,TabulkaPříjmů[Týden 11]) -> 0 | N12: =SUBTOTAL(109,TabulkaPříjmů[Týden 12]) -> 0 | O12: =SUBTOTAL(109,TabulkaPříjmů[Týden 13]) -> 0 | P12: =SUBTOTAL(109,TabulkaPříjmů[Týden 14]) -> 0 | Q12: =SUBTOTAL(109,TabulkaPříjmů[Týden 15]) -> 0 | R12: =SUBTOTAL(109,TabulkaPříjmů[Týden 16]) -> 0 | S12: =SUBTOTAL(109,TabulkaPříjmů[Týden 17]) -> 0 | T12: =SUBTOTAL(109,TabulkaPříjmů[Týden 18]) -> 0 | U12: =SUBTOTAL(109,TabulkaPříjmů[Celkem]) -> 32,828.00 Kč
A14: Výdaje
B15: MZDY | C15: 1,500.00 Kč | D15: 1,577.00 Kč | E15: 1,823.00 Kč | F15: 1,529.00 Kč | G15: 1,759.00 Kč | H15: 1,947.00 Kč | I15: 1,875.00 Kč | U15: =SUM(TabulkaVýdajů[[#This Row],[Týden 1]:[Týden 18]]) -> 12,010.00 Kč
B16: NÁJEMNÉ | C16: 1,000.00 | D16: 1,000.00 | E16: 1,000.00 | F16: 1,000.00 | G16: 1,000.00 | H16: 1,000.00 | I16: 1,000.00 | U16: =SUM(TabulkaVýdajů[[#This Row],[Týden 1]:[Týden 18]]) -> 7,000.00
B17: ELEKTŘINA | C17: 40.00 | D17: 43.00 | E17: 40.00 | F17: 42.00 | G17: 45.00 | H17: 40.00 | I17: 42.00 | U17: =SUM(TabulkaVýdajů[[#This Row],[Týden 1]:[Týden 18]]) -> 292.00
B18: TELEFON | C18: 12.00 | D18: 11.00 | E18: 13.00 | F18: 14.00 | G18: 11.00 | H18: 15.00 | I18: 15.00 | U18: =SUM(TabulkaVýdajů[[#This Row],[Týden 1]:[Týden 18]]) -> 91.00
B19: INTERNET | C19: 15.00 | D19: 15.00 | E19: 15.00 | F19: 15.00 | G19: 15.00 | H19: 15.00 | I19: 15.00 | U19: =SUM(TabulkaVýdajů[[#This Row],[Týden 1]:[Týden 18]]) -> 105.00
B20: VODNÉ | C20: 11.00 | D20: 10.00 | E20: 13.00 | F20: 10.00 | G20: 13.00 | H20: 10.00 | I20: 12.00 | U20: =SUM(TabulkaVýdajů[[#This Row],[Týden 1]:[Týden 18]]) -> 79.00
B21: PLYN | C21: 23.00 | D21: 27.00 | E21: 26.00 | F21: 27.00 | G21: 22.00 | H21: 29.00 | I21: 21.00 | U21: =SUM(TabulkaVýdajů[[#This Row],[Týden 1]:[Týden 18]]) -> 175.00
B22: ODVOZ ODPADU | C22: 4.00 | D22: 4.00 | E22: 4.00 | F22: 4.00 | G22: 4.00 | H22: 4.00 | I22: 4.00 | U22: =SUM(TabulkaVýdajů[[#This Row],[Týden 1]:[Týden 18]]) -> 28.00
B23: KABELOVÁ TV | C23: 10.00 | D23: 10.00 | E23: 10.00 | F23: 10.00 | G23: 10.00 | H23: 10.00 | I23: 10.00 | U23: =SUM(TabulkaVýdajů[[#This Row],[Týden 1]:[Týden 18]]) -> 70.00
B24: KANCELÁŘSKÉ POTŘEBY | C24: 25.00 | D24: 57.00 | E24: 68.00 | F24: 146.00 | G24: 125.00 | H24: 111.00 | I24: 132.00 | U24: =SUM(TabulkaVýdajů[[#This Row],[Týden 1]:[Týden 18]]) -> 664.00
B25: POJIŠTĚNÍ | C25: 60.00 | D25: 60.00 | E25: 60.00 | F25: 60.00 | G25: 60.00 | H25: 60.00 | I25: 60.00 | U25: =SUM(TabulkaVýdajů[[#This Row],[Týden 1]:[Týden 18]]) -> 420.00
B26: VÝDAJE CELKEM | C26: =SUBTOTAL(109,TabulkaVýdajů[Týden 1]) -> 2,700.00 Kč | D26: =SUBTOTAL(109,TabulkaVýdajů[Týden 2]) -> 2,814.00 Kč | E26: =SUBTOTAL(109,TabulkaVýdajů[Týden 3]) -> 3,072.00 Kč | F26: =SUBTOTAL(109,TabulkaVýdajů[Týden 4]) -> 2,857.00 Kč | G26: =SUBTOTAL(109,TabulkaVýdajů[Týden 5]) -> 3,064.00 Kč | H26: =SUBTOTAL(109,TabulkaVýdajů[Týden 6]) -> 3,241.00 Kč | I26: =SUBTOTAL(109,TabulkaVýdajů[Týden 7]) -> 3,186.00 Kč | J26: =SUBTOTAL(109,TabulkaVýdajů[Týden 8]) -> 0 | K26: =SUBTOTAL(109,TabulkaVýdajů[Týden 9]) -> 0 | L26: =SUBTOTAL(109,TabulkaVýdajů[Týden 10]) -> 0 | M26: =SUBTOTAL(109,TabulkaVýdajů[Týden 11]) -> 0 | N26: =SUBTOTAL(109,TabulkaVýdajů[Týden 12]) -> 0 | O26: =SUBTOTAL(109,TabulkaVýdajů[Týden 13]) -> 0 | P26: =SUBTOTAL(109,TabulkaVýdajů[Týden 14]) -> 0 | Q26: =SUBTOTAL(109,TabulkaVýdajů[Týden 15]) -> 0 | R26: =SUBTOTAL(109,TabulkaVýdajů[Týden 16]) -> 0 | S26: =SUBTOTAL(109,TabulkaVýdajů[Týden 17]) -> 0 | T26: =SUBTOTAL(109,TabulkaVýdajů[Týden 18]) -> 0 | U26: =SUBTOTAL(109,TabulkaVýdajů[Celkem]) -> 20,934.00 Kč
